[Event "Kezmarok Chess Open 2022"]
[Site "Kezmarok"]
[Date "2022.09.27"]
[Round "5.12"]
[White "Rakovsky, Jakub"]
[Black "Kapolkova, Greta"]
[Result "1/2-1/2"]
[ECO "C54"]
[WhiteElo "2012"]
[BlackElo "1723"]
[Annotator "TA"]
[PlyCount "124"]
[EventDate "2022.09.24"]
[EventType "swiss"]
[EventCountry "SVK"]
[SourceTitle "playchess.com"]
[Source "ChessBase"]
[SourceQuality "1"]
[TimeControl "40/5400+30:1800+30"]

{[%evp 11,124,21,16,8,18,16,3,7,15,0,0,-19,0,-35,-26,-107,0,0,16,-10,0,0,0,-55,-39,-50,-58,-76,-20,-26,0,-41,-16,-68,-51,-95,-90,-90,-90,-90,-90,-75,-74,-72,-61,-56,-70,-179,-51,-51,-51,-64,-63,-89,0,-7,0,0,0,0,0,0,0,0,0,0,0,-170,-189,-187,0,0,0,0,0,0,148,0,0,0,0,-44,0,0,0,-285,-253,-312,-310,-338,-309,-343,-347,-520,-575,-660,-667,-666,-610,-577,-542,-29980,-29981,-29981,-29970,-29969,-585,-94,0,0,0,-93,0,0,0]} 1. e4 e5 2. Bc4 Nc6 3. Nf3 Bc5 4. c3 Nf6 5. d3 d6 6. Nbd2 O-O 7. h3 {C54: Giuoco Piano: 4 c3 Nf6, main lines with 5 d4 and 5 d3.} Bd7 {[#] 7...a5 is becoming the main line.} 8. a4 $146 {Strongly threatening b4.} ({Predecessor:} 8. Nf1 Re8 9. Ng3 a6 10. O-O Be6 11. Bb3 d5 12. Nxe5 Nxe5 13. d4 Bd6 14. dxe5 Bxe5 15. exd5 Bxd5 16. Bxd5 Nxd5 {1-0 (32) Hudak,M (1169)-Stavac,T (1000) Stara Lubovna 2022}) 8... a5 {Prevents b4.} 9. Nf1 h6 10. g4 Be6 11. Bxe6 fxe6 12. Be3 Bxe3 13. Nxe3 (13. fxe3 $11 d5 14. Ng3) 13... Nh7 ({Black should play} 13... d5 $17 14. Qb3 Nd7 15. exd5 Rxf3 16. Qxb7 Ne7 17. dxe6 Rxe3+ $1 18. fxe3 Nc5) 14. h4 $11 g6 15. Qe2 Qd7 16. g5 h5 17. Kf1 (17. Nd2 $11) 17... Rf4 18. Ng2 Rf7 19. Rh3 Raf8 ({Better is} 19... Nf8 $17) 20. Rg3 b6 21. Qe3 Qc8 22. Ke2 (22. Kg1 $11) 22... Qa6 23. Nd2 Rxf2+ 24. Qxf2 Rxf2+ 25. Kxf2 b5 26. Ke2 Nf8 27. Rf3 Nd7 28. axb5 Qxb5 29. b3 (29. Raf1 $15) 29... Kg7 (29... Qc5 $1 $19 {[%cal Rc5c3]} 30. Raf1 (30. Nc4 $2 d5 $19) 30... Qxc3) 30. Raf1 Nd8 {Prevents Rf7+.} 31. Ne3 {[%cal Bg2e3,Be3d1,Bd1b2,Bb2a4][%mdl 32]} Qc5 32. Nd1 Qb5 (32... a4 $17 {Hoping for ...a3.} 33. bxa4 Qa5) 33. Nb2 Qc5 34. Na4 {Dancing on a razor blade.} Qb5 35. Kd1 Qb7 36. Kc2 Qb5 37. Nc4 Kg8 38. Nab2 Kg7 39. d4 $2 (39. Na4 $11) 39... exd4 $19 40. cxd4 e5 $2 (40... d5 $19 41. Nd2 Nc6) 41. d5 $11 Qc5 42. Na4 Qb4 43. Rc3 c6 (43... Qb5 $11) 44. Nd2 {White is more active.} (44. Rd1 $1 $16) 44... Qb5 45. Kb2 Qe2 ({But not} 45... cxd5 46. Rc7 Ne6 47. Nc3 $16) 46. Rc2 cxd5 47. exd5 {Black must now prevent Kc1.} Qd3 48. Rf3 $2 {[%mdl 8192]} (48. Kc1 $11 Nc5 49. Nxc5 dxc5 50. Rxc5) 48... Qxd5 $19 {Threatens to win with ...Ne6.} 49. Rfc3 Ne6 {Prevents Rc7.} 50. Nc4 Nd4 51. Ncb6 Qb5 52. Rc7 (52. Nxd7 $142 Nxc2 53. Rc7) 52... Qxb3+ 53. Kc1 Nxc2 54. Nxd7 {aiming for Ndc5+.} Qa3+ 55. Kd2 Nd4 {( -> ...Qa2+)} 56. Nab6 Qb2+ 57. Kd1 Qe2+ 58. Kc1 Nb3+ $2 (58... Qe1+ {mates} 59. Kb2 Qd2+ 60. Ka1 Nb5 61. Nc4 Qd1+ 62. Kb2 Nxc7 63. Nf6 Qd4+ 64. Kb3 Qd3+ 65. Ka2 Qxc4+ 66. Kb1 Qb3+ 67. Kc1 Nb5 68. Nxh5+ gxh5 69. Kd2 Nd4 70. Ke1 Qf3 71. Kd2 Qe2+ 72. Kc3 Qc2#) 59. Kb1 $17 {[#]} Nd2+ (59... Qf1+ $1 $17 60. Kb2 Qf7) 60. Kc1 $11 {White threatens Nf6+ and mate.} Nb3+ (60... Kf7 $11 61. Nc5+ Kg8 62. Rc8+ Kh7 63. Rc7+ Kh8 64. Rc8+ Kh7 65. Rc7+ Kg8 66. Rc8+ Kh7) 61. Kb1 $17 {[#] White wants to mate with Nf6+.} Nd2+ (61... Qf1+ $1 $17 62. Kb2 Qf7) 62. Kc1 $11 {Nf6+ would kill now.} Nb3+ {Weighted Error Value: White=0.39/Black=0.29 (precise)} 1/2-1/2

[Event "Kezmarok Chess Open 2022"]
[Site "Kezmarok"]
[Date "2022.09.27"]
[Round "5.13"]
[White "Fizer, Marek"]
[Black "Smetana, Peter"]
[Result "0-1"]
[ECO "B43"]
[WhiteElo "1963"]
[BlackElo "1715"]
[Annotator "TA"]
[PlyCount "76"]
[EventDate "2022.09.24"]
[EventType "swiss"]
[EventCountry "SVK"]
[SourceTitle "playchess.com"]
[Source "ChessBase"]
[SourceQuality "1"]
[TimeControl "40/5400+30:1800+30"]

{[%evp 22,76,-11,-22,0,-35,0,4,19,-17,-1,-16,14,16,14,0,0,-80,-26,-123,-6,-248,-235,-299,-309,-239,-172,-203,-112,-550,-551,-587,-564,-529,-399,-588,-325,-327,-334,-294,-59,-556,-205,-336,-277,-303,-295,-273,-153,-364,-354,-1636,-1613,-5082,-1343,-29989,-29990]} 1. e4 {[%emt 0:00:15]} c5 {[%emt 0:00:41]} 2. Nf3 {[%emt 0:00:08]} e6 {[%emt 0:01:09]} 3. d4 {[%emt 0:00:33]} cxd4 {[%emt 0:00:15]} 4. Nxd4 {[%emt 0:00:10]} a6 {[%emt 0:01:01]} 5. Nc3 {[%emt 0:01:08]} Qc7 {[%emt 0:00:47]} 6. Bd3 {[%emt 0:00:28]} Nf6 {[%emt 0:01:02]} 7. O-O {[%emt 0:00:55]} d6 {[%emt 0:02:27]} 8. Kh1 {[%emt 0:01:01]} Be7 {[%emt 0:01:00]} 9. Qe2 {[%emt 0:00:50]} Nbd7 {[%emt 0:01:29]} 10. f4 {[%emt 0:02:02]} b5 {[%emt 0:02:54]} 11. a3 {[%emt 0:04:01]} Bb7 {[%emt 0:02:26]} 12. Bd2 {[%emt 0:01:47]} O-O {[%emt 0:14:54] B43: Sicilian: Kan Variation: 5 Nc3.} 13. g4 {[%emt 0:12:28][%cal Bg2g4,Bg4g5][%mdl 32]} Nc5 {[%emt 0:18:15][%cal Of6e4]} 14. g5 {[%emt 0:08:20]} Ne8 {[%emt 0:09:52] [#] The position is equal.} 15. b4 $146 {[%emt 0:04:40]} ({Predecessor:} 15. f5 Qd8 16. Qg4 Nxd3 17. cxd3 exf5 18. Nxf5 d5 19. Bf4 b4 20. axb4 Bxb4 21. Be5 Bxc3 22. Bxc3 {1-0 (43) Padmini,R (2331)-Ivekovic,T (2122) Pune 2014}) 15... Nxd3 {[%emt 0:08:16]} 16. cxd3 {[%emt 0:00:12]} d5 {[%emt 0:13:35]} 17. e5 {[%emt 0:01:29]} g6 {[%emt 0:00:46]} 18. Rf3 {[%emt 0:01:42]} Ng7 {[%emt 0:01:00]} 19. Rh3 {[%emt 0:01:28]} (19. Qf2 $11) 19... Rfc8 {[%emt 0:00:44]} ({Black should play} 19... Nf5 $17 20. Qf2 Nxd4 21. Qxd4 Rfc8) 20. Rg1 {[%emt 0:11:42]} (20. Qf2 $11) 20... Bf8 {[%emt 0:01:43]} (20... Qb6 $17 21. Qf2 Nf5) 21. Nd1 $2 {[%emt 0:12:06] [#]} (21. Rg2 $1 $11) 21... Nf5 $19 {[%emt 0:00:47]} 22. Nf3 {[%emt 0:09:59]} d4 {[%emt 0:01:37]} 23. Nf2 {[%emt 0:00:45]} Bg7 {[%emt 0:01:24]} 24. Ne4 {[%emt 0:01:45]} Bd5 {[%emt 0:02:17]} ({Better is} 24... Qc2 $19 {And now ...Qb2 would win.} 25. Ra1 (25. Rc1 $2 Qa2 $19) 25... a5) 25. Rc1 $2 {[%emt 0:04:30][%mdl 8192] [#]} (25. Ne1 $17 {is a better chance.}) 25... Qxc1+ {[%emt 0:03:50]} 26. Bxc1 {[%emt 0:00:07]} Rxc1+ {[%emt 0:00:06]} 27. Ne1 {[%emt 0:00:16]} Rac8 {[%emt 0:00:29]} 28. Kg1 {[%emt 0:00:47]} (28. Rf3 $142) 28... Bxe4 {[%emt 0:00:25]} 29. dxe4 {[%emt 0:01:57]} Ne3 {[%emt 0:00:26]} 30. Kf2 {[%emt 0:02:18]} Nd1+ {[%emt 0:00:50]} (30... R8c3 $19 31. Qd2 Rd1 32. Qxc3 Ng4+ 33. Ke2 dxc3 34. Rxc3 Ra1) 31. Kg3 $2 {[%emt 0:01:07][%mdl 8192]} (31. Kf1 $1 $15) 31... R8c3+ $2 {[%emt 0:00:52]} (31... Nc3 32. Qf1 d3 33. Qxd3 Rxe1) 32. Kh4 {[%emt 0:04:39]} (32. Nd3 $142 Ra1 33. f5) 32... Ne3 {[%emt 0:00:21][%cal Oc1e1]} 33. Rg3 {[%emt 0:06:10]} Rxa3 {[%emt 0:02:40] Strongly threatening ...Bf8.} 34. Qd2 {[%emt 0:02:56]} Rca1 {[%emt 0:04:29]} (34... Rc4 $19 {...Bf8 is the strong threat.} 35. Qb2 Rac3) 35. Nc2 $2 {[%emt 0:01:49]} (35. Qxd4 $17 {only move.} Rxe1 36. Qd2) 35... R1a2 {[%emt 0:00:32] Really sharp!} 36. Rxe3 $2 {[%emt 0:01:15]} (36. Qxd4 Nxc2 37. Rxa3 Nxa3 38. Qd8+ Bf8 39. f5) 36... dxe3 {[%emt 0:00:36][%cal Bd4e3,Be3e2][%mdl 32]} 37. Qd8+ {[%emt 0:00:03]} Bf8 {[%emt 0:00:12]} 38. Nxa3 {[%emt 0:00:25]} e2 {[%emt 0:01:18] Weighted Error Value: White=1.38/Black=0.77} 0-1

[Event "Kezmarok Chess Open 2022"]
[Site "Kezmarok"]
[Date "2022.09.27"]
[Round "5.14"]
[White "Hagara, Eduard"]
[Black "Striskova, Lucia"]
[Result "0-1"]
[ECO "C29"]
[WhiteElo "1734"]
[BlackElo "1866"]
[Annotator "NA RC COMBH"]
[PlyCount "60"]
[EventDate "2022.09.24"]
[EventType "swiss"]
[EventCountry "SVK"]
[SourceTitle "playchess.com"]
[Source "ChessBase"]
[SourceQuality "1"]
[TimeControl "40/5400+30:1800+30"]

1. e4 {[%emt 0:00:41]} e5 {[%emt 0:00:18]} 2. Nc3 {[%emt 0:00:33]} Nf6 {[%emt 0:00:44]} 3. f4 {[%emt 0:01:19]} d5 {[%emt 0:00:32]} 4. fxe5 {[%emt 0:01:03]} Nxe4 {[%emt 0:00:18]} 5. Nf3 {[%emt 0:00:50]} Nc6 {[%emt 0:07:28]} 6. a3 {[%emt 0:03:04]} Bg4 {[%emt 0:02:41]} 7. d4 {[%emt 0:02:14]} Bxf3 {[%emt 0:03:11]} 8. Qxf3 {[%emt 0:05:56]} Nxd4 {[%emt 0:00:27]} 9. Qd3 {[%emt 0:03:31]} Nxc3 {[%emt 0:02:31]} 10. bxc3 {[%emt 0:04:16]} Nc6 {[%emt 0:03:36]} 11. Bf4 {[%emt 0:01:31]} Qd7 {[%emt 0:04:25]} 12. Be2 {[%emt 0:02:50]} Bc5 {[%emt 0:01:11]} 13. h3 {[%emt 0:03:25]} Rd8 {[%emt 0:02:27]} 14. Qg3 {[%emt 0:02:12]} O-O {[%emt 0:08:37]} 15. Bh6 {[%emt 0:06:41]} f6 {[%emt 0:02:03]} 16. e6 {[%emt 0:07:20]} Qe7 {[%emt 0:00:05]} 17. Rf1 {[%emt 0:01:59]} Kh8 {[%emt 0:01:11]} 18. Bf4 {[%emt 0:03:40]} Qxe6 {[%emt 0:02:32]} 19. Kd2 {[%emt 0:03:14]} d4 {[%emt 0:03:00]} 20. c4 {[%emt 0:01:11]} Bd6 {[%emt 0:03:34]} 21. Bd3 {[%emt 0:01:36]} Bxf4+ {[%emt 0:00:47]} 22. Rxf4 {[%emt 0:00:53]} Ne5 {[%emt 0:01:56]} 23. Re1 {[%emt 0:00:57]} Qd7 {[%emt 0:07:02]} 24. Ree4 {[%emt 0:10:01]} c5 {[%emt 0:00:51]} 25. Rh4 {[%emt 0:01:31]} Nxd3 {[%emt 0:01:38]} 26. Qg6 {[%emt 0:06:41]} h6 {[%emt 0:01:47]} 27. cxd3 {[%emt 0:06:54]} Rde8 {[%emt 0:03:03]} 28. Reg4 {[%emt 0:05:41]} f5 {[%emt 0:04:12]} 29. Rg5 {[%emt 0:01:51]} Qe7 {[%emt 0:03:44]} 30. Rg3 {[%emt 0:04:11]} Qe1+ {[%emt 0:00:39]} 0-1

[Event "Kezmarok Chess Open 2022"]
[Site "Kezmarok"]
[Date "2022.09.27"]
[Round "5.15"]
[White "Velychko, Sofiya"]
[Black "Fizerova, Lucie"]
[Result "0-1"]
[ECO "D00"]
[WhiteElo "1371"]
[BlackElo "1779"]
[Annotator "NA RC COMBH"]
[PlyCount "100"]
[EventDate "2022.09.24"]
[EventType "swiss"]
[EventCountry "SVK"]
[SourceTitle "playchess.com"]
[Source "ChessBase"]
[SourceQuality "1"]
[TimeControl "40/5400+30:1800+30"]

1. d4 {[%emt 0:00:03]} d5 {[%emt 0:00:13]} 2. Nc3 {[%emt 0:00:19]} e6 {[%emt 0:00:41]} 3. Bf4 {[%emt 0:00:42]} Nf6 {[%emt 0:00:56]} 4. Nf3 {[%emt 0:00:42]} c5 {[%emt 0:01:00]} 5. dxc5 {[%emt 0:01:22]} Bxc5 {[%emt 0:00:36]} 6. e3 {[%emt 0:01:10]} a6 {[%emt 0:02:39]} 7. Bd3 {[%emt 0:01:33]} O-O {[%emt 0:01:11]} 8. O-O {[%emt 0:01:33]} Nc6 {[%emt 0:01:40]} 9. Re1 {[%emt 0:03:07]} Nb4 {[%emt 0:03:55]} 10. e4 {[%emt 0:04:55]} Nxd3 {[%emt 0:03:43]} 11. Qxd3 {[%emt 0:01:34]} dxe4 {[%emt 0:00:43]} 12. Nxe4 {[%emt 0:01:59]} Qxd3 {[%emt 0:07:20]} 13. Nxf6+ {[%emt 0:02:01]} gxf6 {[%emt 0:00:14]} 14. cxd3 {[%emt 0:00:12]} e5 {[%emt 0:00:49]} 15. Bg3 {[%emt 0:02:01]} Bf5 {[%emt 0:00:47]} 16. Bh4 {[%emt 0:05:40]} Kg7 {[%emt 0:01:30]} 17. Rad1 {[%emt 0:05:42]} Rad8 {[%emt 0:07:33]} 18. Nxe5 {[%emt 0:12:07]} Rd5 {[%emt 0:00:28]} 19. Nc4 {[%emt 0:03:04]} Rxd3 {[%emt 0:01:43]} 20. Rxd3 {[%emt 0:01:16]} Bxd3 {[%emt 0:00:03]} 21. Ne3 {[%emt 0:00:47]} Bg6 {[%emt 0:16:17]} 22. Nd5 {[%emt 0:04:20]} Bd4 {[%emt 0:00:47]} 23. b3 {[%emt 0:08:50]} Rd8 {[%emt 0:01:34]} 24. Nf4 {[%emt 0:00:47]} Bc3 {[%emt 0:00:25]} 25. Rf1 {[%emt 0:01:41]} Rd2 {[%emt 0:04:16]} 26. Nxg6 {[%emt 0:05:52]} fxg6 {[%emt 0:00:14]} 27. h3 {[%emt 0:02:13]} Rxa2 {[%emt 0:02:34]} 28. Rd1 {[%emt 0:02:07]} Ra1 {[%emt 0:02:16]} 29. Rxa1 {[%emt 0:00:38]} Bxa1 {[%emt 0:00:01]} 30. f3 {[%emt 0:00:40]} Kf7 {[%emt 0:02:05]} 31. Be1 {[%emt 0:00:27]} Ke6 {[%emt 0:03:31]} 32. Kf2 {[%emt 0:00:33]} Kd5 {[%emt 0:00:31]} 33. Ke3 {[%emt 0:00:23]} b6 {[%emt 0:01:55]} 34. Kd3 {[%emt 0:00:35]} a5 {[%emt 0:00:51]} 35. Bd2 {[%emt 0:01:25]} Be5 {[%emt 0:01:13]} 36. Be1 {[%emt 0:01:29]} Bc7 {[%emt 0:00:32]} 37. Bc3 {[%emt 0:00:35]} f5 {[%emt 0:00:12]} 38. Bb2 {[%emt 0:00:54]} b5 {[%emt 0:00:41]} 39. Ba3 {[%emt 0:00:35]} Bd6 {[%emt 0:01:02]} 40. Bb2 {[%emt 0:00:27]} a4 {[%emt 0:00:26]} 41. bxa4 {[%emt 0:30:18]} bxa4 {[%emt 0:30:10]} 42. Kc2 {[%emt 0:00:11]} a3 {[%emt 0:00:52]} 43. Bc1 {[%emt 0:00:09]} a2 {[%emt 0:00:42]} 44. Kb2 {[%emt 0:00:06]} Ba3+ {[%emt 0:00:16]} 45. Kxa2 {[%emt 0:00:08]} Bxc1 {[%emt 0:00:04]} 46. Kb1 {[%emt 0:00:11]} Be3 {[%emt 0:00:26]} 47. Kc2 {[%emt 0:00:10]} Ke5 {[%emt 0:00:10]} 48. Kd3 {[%emt 0:00:11]} Kf4 {[%emt 0:00:18]} 49. Ke2 {[%emt 0:00:19]} Bc5 {[%emt 0:00:15]} 50. Kf1 {[%emt 0:00:08]} Kg3 {[%emt 0:00:06]} 0-1

[Event "Kezmarok Chess Open 2022"]
[Site "Kezmarok"]
[Date "2022.09.27"]
[Round "5.16"]
[White "Juracak, David"]
[Black "Hanina, Marcel"]
[Result "1-0"]
[ECO "D45"]
[WhiteElo "1708"]
[BlackElo "1411"]
[Annotator "NA RC COMBH"]
[PlyCount "47"]
[EventDate "2022.09.24"]
[EventType "swiss"]
[EventCountry "SVK"]
[SourceTitle "playchess.com"]
[Source "ChessBase"]
[SourceQuality "1"]
[TimeControl "40/5400+30:1800+30"]

1. d4 d5 2. c4 e6 3. Nf3 Nf6 4. Nc3 Nbd7 5. e3 c6 6. cxd5 cxd5 7. Bd3 Bb4 8. O-O O-O 9. Bd2 b6 10. Rc1 Bxc3 11. Bxc3 Bb7 12. Qe2 Rc8 13. Rc2 Ne4 14. Bb4 Rxc2 15. Qxc2 Re8 16. Rc1 Qc8 17. Qc7 Ndf6 18. Ne5 Qxc7 19. Rxc7 Ba8 20. Rxa7 Nh5 21. Rxf7 Rc8 22. Kf1 Rc1+ 23. Ke2 Bc6 24. Rf8# 1-0

[Event "Kezmarok Chess Open 2022"]
[Site "Kezmarok"]
[Date "2022.09.27"]
[Round "5.18"]
[White "Straka, Simon"]
[Black "Kolek, Stefan"]
[Result "1-0"]
[ECO "D35"]
[WhiteElo "1732"]
[BlackElo "1524"]
[Annotator "NA RC COMBH"]
[PlyCount "36"]
[EventDate "2022.09.24"]
[EventType "swiss"]
[EventCountry "SVK"]
[SourceTitle "playchess.com"]
[Source "ChessBase"]
[SourceQuality "1"]
[TimeControl "40/5400+30:1800+30"]

1. d4 e6 2. c4 d5 3. Nc3 Nf6 4. cxd5 exd5 5. Bg5 Be7 6. e3 O-O 7. Bd3 Bg4 8. Qb3 Nc6 9. Bxf6 Bxf6 10. Nxd5 Be6 11. Nxf6+ gxf6 12. Qc3 Qd5 13. Ne2 Bf5 14. Nf4 Qd7 15. Nh5 Qe6 16. d5 Qe5 17. Qxe5 fxe5 18. Bxf5 Rad8 1-0

[Event "Kezmarok Chess Open 2022"]
[Site "Kezmarok"]
[Date "2022.09.28"]
[Round "6.1"]
[White "Dubessay, Bastien"]
[Black "Hagarova, Zuzana"]
[Result "1-0"]
[ECO "E92"]
[WhiteElo "2259"]
[BlackElo "2287"]
[Annotator "TA"]
[PlyCount "83"]
[EventDate "2022.09.24"]
[EventType "swiss"]
[EventCountry "SVK"]
[SourceTitle "playchess.com"]
[Source "ChessBase"]
[SourceQuality "1"]
[TimeControl "40/5400+30:1800+30"]

{[%evp 18,83,34,36,45,23,26,4,34,34,38,28,36,16,59,62,71,48,52,21,47,38,89,78,72,74,68,66,61,45,42,52,52,52,66,55,63,52,208,206,332,336,339,329,701,710,689,670,621,583,633,659,729,702,741,768,681,668,5122,5122,5194,4927,29988,29989,29989,29990,29990,29991]} 1. d4 {[%emt 0:00:05]} Nf6 {[%emt 0:00:12]} 2. c4 {[%emt 0:00:11]} g6 {[%emt 0:00:08]} 3. Nc3 {[%emt 0:00:07]} Bg7 {[%emt 0:00:04]} 4. e4 {[%emt 0:00:11]} d6 {[%emt 0:00:32]} 5. Nf3 {[%emt 0:00:08]} O-O {[%emt 0:00:17]} 6. Be2 {[%emt 0:00:08]} e5 {[%emt 0:00:18]} 7. d5 {[%emt 0:00:14]} Na6 {[%emt 0:02:33]} 8. Bg5 {[%emt 0:02:52]} h6 {[%emt 0:02:21]} 9. Bh4 {[%emt 0:00:48]} Qe8 {[%emt 0:02:33]} 10. Nd2 {[%emt 0:01:38]} Bd7 {[%emt 0:08:02] E92: King's Indian: Classical: 6 Be2 e5: 7 dxe5, 7 Be3 and Petrosian System without 7...Nbd7.} 11. O-O {[%emt 0:00:48]} Nc5 {[%emt 0:03:29]} 12. b4 {[%emt 0:10:14]} Na4 {[%emt 0:14:47] The position is equal.} 13. Nxa4 {[%emt 0:00:16]} Bxa4 {[%emt 0:00:06]} 14. Qc1 {[%emt 0:00:05]} Bd7 {[%emt 0:03:31]} 15. c5 {[%emt 0:10:27]} Bb5 {[%emt 0:12:52]} 16. Bxb5 {[%emt 0:06:46]} Qxb5 {[%emt 0:00:13]} 17. Bxf6 {[%emt 0:00:07]} Bxf6 {[%emt 0:00:15]} 18. Qc4 {[%emt 0:00:14]} Qd7 {[%emt 0:07:11] [#]} 19. Rfd1 $146 {[%emt 0:23:46]} ({Predecessor:} 19. c6 bxc6 20. Qxc6 Qxc6 21. dxc6 Bg5 22. Nc4 f5 23. f3 fxe4 24. fxe4 Rf4 25. Rxf4 exf4 {1-0 (47) Diulger,A (2310)-Prociuc,E (2020) Kishinev 2001}) 19... a5 {[%emt 0:22:26]} ({Black should try} 19... Qa4 $14) 20. c6 {[%emt 0:04:37]} Qc8 {[%emt 0:01:25]} 21. cxb7 {[%emt 0:03:55] White is more active.} Qxb7 {[%emt 0:00:05]} 22. b5 {[%emt 0:00:04]} a4 $1 {[%emt 0:00:32]} 23. Qc6 {[%emt 0:12:15]} Rfb8 {[%emt 0:01:02]} 24. Rab1 {[%emt 0:00:26]} Ra5 $1 {[%emt 0:05:06]} 25. Nc4 $1 $36 {[%emt 0:00:23][%cal Bd2c4,Bc4e5,Be5c6][%mdl 2080] White has the initiative.} Rxb5 {[%emt 0:09:00]} 26. Rxb5 {[%emt 0:00:08]} Qxb5 {[%emt 0:00:06]} 27. Qxc7 {[%emt 0:00:04]} Bd8 $2 {[%emt 0:01:56] This costs Black the game.} ({Weaker is} 27... Qb1 28. Rf1 Qb7 29. Qxd6 $16) ({Black should play} 27... Be7 $1 $14) 28. Qxd6 $18 {[%emt 0:02:47]} Rc8 {[%emt 0:01:10]} (28... Qb1 $142 29. Ne3 (29. Qxd8+ Kg7 $17) 29... Qb2) 29. Nxe5 {[%emt 0:01:38]} Qe2 {[%emt 0:00:52][%cal Re2d1] [#]} 30. Rf1 {[%emt 0:00:15] Black must now prevent Qd7.} Bh4 $2 {[%emt 0:01:32]} (30... Qxe4 31. Nxf7 (31. Qd7 Qf5 $16) 31... Bg5 32. Nxg5 hxg5) 31. g3 {[%emt 0:01:21]} Qxe4 {[%emt 0:00:48]} 32. gxh4 {[%emt 0:01:35]} Re8 {[%emt 0:00:28]} 33. Nc6 {[%emt 0:01:38]} Qxh4 {[%emt 0:00:30]} 34. Qg3 {[%emt 0:01:05]} Qc4 {[%emt 0:00:32]} 35. Rd1 {[%emt 0:03:34]} Qe2 {[%emt 0:00:27]} 36. Qd3 {[%emt 0:00:43] [#] And now Qxe2 would win.} Qg4+ {[%emt 0:00:35]} 37. Kh1 {[%emt 0:00:07]} Re2 {[%emt 0:00:18]} 38. h3 {[%emt 0:04:05]} Qh5 {[%emt 0:00:25]} 39. d6 {[%emt 0:00:19] White wants to mate with d7.} Rxf2 {[%emt 0:00:39]} 40. d7 {[%emt 0:00:08] White mates.} Rf3 {[%emt 0:00:39]} 41. d8=Q+ {[%emt 0:30:06]} Kh7 {[%emt 0:30:09]} 42. Q8d7 {[%emt 0:00:10] Weighted Error Value: White=0.09 (flawless) /Black=0.27 (precise)} 1-0

[Event "Kezmarok Chess Open 2022"]
[Site "Kezmarok"]
[Date "2022.09.28"]
[Round "6.2"]
[White "Wisniewski, Michal"]
[Black "Bazakutsa, Svyatoslav"]
[Result "0-1"]
[ECO "A48"]
[WhiteElo "2152"]
[BlackElo "2182"]
[Annotator "TA"]
[PlyCount "60"]
[EventDate "2022.09.24"]
[EventType "swiss"]
[EventCountry "SVK"]
[SourceTitle "playchess.com"]
[Source "ChessBase"]
[SourceQuality "1"]
[TimeControl "40/5400+30:1800+30"]

{[%evp 9,60,9,3,-27,-8,-19,0,0,-9,-10,0,-20,-9,-15,-16,-14,-18,-17,0,0,-1,-5,0,-8,-7,-11,-15,-13,-6,-12,-14,-20,-14,-13,0,0,0,-64,-66,-119,-107,-191,-183,-227,-233,-408,-401,-427,-411,-402,-397,-417,-381]} 1. Nf3 {[%emt 0:00:05]} g6 {[%emt 0:00:08]} 2. d4 {[%emt 0:00:12]} Nf6 {[%emt 0:00:08]} 3. Nbd2 {[%emt 0:00:06]} Bg7 {[%emt 0:00:05]} 4. e4 {[%emt 0:00:04]} O-O {[%emt 0:00:11]} 5. e5 {[%emt 0:03:50]} Nh5 {[%emt 0:00:06] [#]} 6. g3 $146 {[%emt 0:04:17] A48: 1 d4 Nf6 2 Nf3 g6: Torre, London and Colle Systems.} ({Predecessor:} 6. g4 Nf4 7. Ne4 d5 8. Ng3 Ne6 9. Nf5 c5 10. Nxg7 Nxg7 11. h3 cxd4 12. Bh6 Qa5+ {1-0 (34) Vidit,S (2727)-Grandelius,N (2672) Wijk aan Zee 2022}) 6... d6 {[%emt 0:00:32]} 7. Bg2 {[%emt 0:00:06]} dxe5 {[%emt 0:08:52]} 8. dxe5 {[%emt 0:00:06] The position is equal.} Nc6 $1 {[%emt 0:01:16]} 9. Qe2 {[%emt 0:00:16]} Qd5 {[%emt 0:14:10][%cal Rc6e5]} (9... Bg4 10. h3 Bc8 11. Nb3 $16) 10. O-O {[%emt 0:10:42]} Nxe5 {[%emt 0:03:12]} 11. Nxe5 {[%emt 0:00:11]} Qxe5 {[%emt 0:00:16]} 12. Qxe5 {[%emt 0:00:04]} Bxe5 {[%emt 0:00:17]} 13. Re1 {[%emt 0:00:02]} Bf6 {[%emt 0:07:42]} 14. Ne4 {[%emt 0:00:13]} Bg7 {[%emt 0:03:11]} 15. Nc5 {[%emt 0:00:18][%csl LRb7,LRe7][%cal Be4c5,Bc5b7,Bb7a5,Ba5c6][%mdl 32]} e6 {[%emt 0:00:29]} 16. g4 {[%emt 0:09:08]} Nf6 {[%emt 0:00:54]} 17. Nxb7 {[%emt 0:00:07]} Rb8 {[%emt 0:05:02][%cal Ba8b8,Bb8b6,Bb6b4][%mdl 32]} 18. Na5 {[%emt 0:01:58]} Nxg4 {[%emt 0:01:59]} 19. Nc6 {[%emt 0:00:09]} Rb6 {[%emt 0:00:11] next ...Bd7 is good for Black.} ({Don't take} 19... Bxb2 20. Rb1 Bxc1 21. Ne7+ (21. Rxb8 Ba3 $16) 21... Kg7 22. Rxb8 $16) 20. h3 {[%emt 0:02:02]} Nf6 $36 {[%emt 0:07:18][%mdl 2048] Black is pushing.} 21. Nxa7 {[%emt 0:02:39]} Bd7 {[%emt 0:01:25] Hoping for ...Ra6.} 22. c4 $1 {[%emt 0:00:05]} Rfb8 {[%emt 0:01:24][%cal Bf8b8,Bb8b4,Bb4f4][%mdl 32]} 23. a4 {[%emt 0:04:25]} (23. Bf4 $11 Rxb2 24. Bxc7) 23... Rb4 $15 {[%emt 0:04:30][%csl LRa4,LRc4]} 24. b3 {[%emt 0:15:51]} (24. Nc6 $15 Bxc6 25. Bxc6) 24... Rxb3 $17 {[%emt 0:13:45]} 25. Bf4 {[%emt 0:01:41]} (25. Be3 $17) 25... R8b4 $19 {[%emt 0:03:19][%csl LRa4,LRc4]} 26. a5 {[%emt 0:07:59]} Nd5 {[%emt 0:05:42]} 27. cxd5 {[%emt 0:01:49] [#]} (27. Bd2 {was called for.} Rxc4 28. Rab1 Rxb1 29. Rxb1) 27... Bxa1 {[%emt 0:02:25]} ({Weaker is} 27... Rxf4 28. Ra2 $17) 28. Rxa1 Rxf4 29. dxe6 fxe6 30. Nc6 Rb2 {Weighted Error Value: White=0.27 (precise) /Black=0.02 (flawless)} ({Don't blunder} 30... Bxc6 $2 31. Bxc6 Rc3 32. a6 Rxc6 33. a7 $19) 0-1